Cogmind - Beta 16.1 @@@ ROGUE MODE // 2026.04.20 @ 14:30:09 Player: Maelyn Result: Destroyed by S-10 Pest with Light Assault Rifle Performance ------------- Evolutions (2) 1000 Regions Visited (9) 1800 Robots Destroyed (78) 390 Value Destroyed (2025) 2025 Prototype IDs (26) 520 Alien Tech Used (0) 0 Bonus (705) 705 TOTAL SCORE: 6440 Bonus ------- Follower Combat Kills 205 Entered Garrisons 200 Aligned with FarCom 300 Cogmind --------- Core Integrity 0/550 Matter 82/300 Energy 99/100 System Corruption 1% Temperature Cool (0) Movement Flying (29) Location -8/Garrison Parts ------- > --- POWER (1) -------- (None) > --- PROPULSION (4) --- VTOL Module Cesium-ion Thruster Cesium-ion Thruster > --- UTILITY (4) ------ Medium Storage Unit Hacking Suite Makeshift Hacking Suite System Shield > --- WEAPON (2) ------- Katana > --- INVENTORY (10) --- Improved Hover Unit Large Storage Unit System Shield Skeleton Box Improved Medium Laser Improved Light Cannon Advanced EMP Blaster Mini Grenade Launcher Peak State ------------ > --- POWER ------------ Nuclear Core > --- PROPULSION ------- Improved Titanium Leg Improved Titanium Leg Improved Titanium Leg Improved Titanium Leg > --- UTILITY ---------- Large Storage Unit Improved Light Armor Plating Makeshift Hacking Suite > --- WEAPON ----------- Advanced EMP Blaster Katana > --- INVENTORY -------- Light Deuterium Engine Light Treads Aluminum Leg Aluminum Leg Improved Hover Unit VTOL Module Medium Storage Unit Hacking Suite System Shield System Shield Skeleton Box Improved Medium Laser Improved Medium Laser Improved Light Cannon Mini Grenade Launcher [Rating: 37] Favorites ----------- Power Light Ion Engine Engine Light Ion Engine Power Core Light Nuclear Core Propulsion Light Treads Treads Light Treads Leg Improved Titanium Leg Flight Unit Cesium-ion Thruster Utility Large Storage Unit Device Heat Sink Storage Large Storage Unit Hackware Makeshift Hacking Suite Protection Improved Light Armor Plating Weapon Improved Light Cannon Energy Gun Improved Medium Laser Energy Cannon Beam Cannon Ballistic Cannon Improved Light Cannon Launcher Mini Grenade Launcher Special Weapon Plasma Flamer Slashing Weapon Katana Build | -11 -10 -10 -9 -9 -9 -8 -8 -8 -8 ------- Run | Yrd Mat Min Mat Min Exi Min Mat Sto Gar Slots Evolved 4 | . . . 2 . . . 2 . . Power . | . . . . . . . . . . Propulsion 2 | . . . 1 . . . 1 . . Utility 2 | . . . 1 . . . 1 . . Weapon . | . . . . . . . . . . Parts Attached 60 | 6 4 . 19 5 . 2 18 6 . Power 8 | 1 . . 3 1 . . 3 . . Engine 5 | 1 . . 3 1 . . . . . Core 3 | . . . . . . . 3 . . Reactor . | . . . . . . . . . . Propulsion 22 | 2 . . 9 . . . 8 3 . Treads 14 | 2 . . 9 . . . 3 . . Leg 5 | . . . . . . . 5 . . Wheel . | . . . . . . . . . . Hover . | . . . . . . . . . . Flight 3 | . . . . . . . . 3 . Utility 14 | 1 1 . 4 2 . 1 2 3 . Device 4 | . . . 2 1 . 1 . . . Storage 3 | 1 1 . . . . . . 1 . Processor . | . . . . . . . . . . Hackware 3 | . . . . . . . 1 2 . Protection 4 | . . . 2 1 . . 1 . . Artifact . | . . . . . . . . . . Weapon 16 | 2 3 . 3 2 . 1 5 . . Energy Gun 6 | 2 1 . 2 . . . 1 . . Energy Cannon 3 | . 1 . . . . . 2 . . Ballistic Gun . | . . . . . . . . . . Ballistic Cannon 3 | . 1 . 1 . . 1 . . . Launcher 2 | . . . . 1 . . 1 . . Special Weapon 1 | . . . . 1 . . . . . Impact Weapon . | . . . . . . . . . . Slashing Weapon 1 | . . . . . . . 1 . . Piercing Weapon . | . . . . . . . . . . Special Melee Weapon . | . . . . . . . . . . Unidentified Prototypes 3 | . . . 2 . . . 1 . . Parts Lost 27 | . 1 . 7 . . 3 16 . . Power 4 | . . . 2 . . . 2 . . Propulsion 10 | . . . 3 . . . 7 . . Utility 5 | . . . 1 . . 1 3 . . Weapon 8 | . 1 . 1 . . 2 4 . . Highest Loss Streak 8 | . 1 . 4 . . 2 8 . . To Critical Strikes . | . . . . . . . . . . Average Backups 13 | 2 10 13 14 14 15 14 14 9 8 Power . | . 1 1 . . . . . . . Propulsion 3 | . 2 2 3 4 4 4 4 1 1 Utility 4 | . 3 4 3 5 5 5 4 2 2 Weapon 4 | 1 3 6 5 5 5 4 4 5 4 Tool/Special . | . . . . . . . . . . Unused Backups 7 | . . . 2 . . . 2 . 3 Power . | . . . . . . . . . . Propulsion 3 | . . . . . . . 2 . 1 Utility 1 | . . . . . . . . . 1 Weapon 2 | . . . 2 . . . . . . Tool/Special 1 | . . . . . . . . . 1 Average Slot Usage (%) 94 | . 98 100 95 100 100 98 81 54 69 Engine 9 | . 14 14 9 11 11 11 3 . . Treads 27 | . 28 28 31 33 33 33 15 . . Leg 2 | . . . . . . . 15 . . Device 7 | . . . 18 11 11 9 1 . . Storage 15 | . 27 28 11 11 11 11 9 9 9 Hackware 2 | . . . . . . . 9 21 27 Protection 4 | . . . 1 11 11 11 5 . . Energy Gun 4 | . 17 . 6 . . . 4 . . Energy Cannon 5 | . 1 14 10 1 . . 3 . . Ballistic Cannon 9 | . 8 14 4 11 11 17 5 . . Special Weapon 1 | . . . . 4 11 4 . . . Peak Build Rating 37 | 6 9 9 17 23 23 23 37 21 24 Average Rating 16 | 4 8 9 13 17 23 20 28 19 23 On Entrance 13 | . 6 9 9 14 23 23 20 9 21 Avg Prop Armor Cover (%) 7 | . . . 9 . . . 5 . . Naked Turns . | . . . . . . . . . . Heaviest Build 41 | 12 35 35 38 38 36 37 41 10 12 Greatest Support 80 | 40 40 40 60 60 60 60 80 14 14 Greatest Overweight (x) 13 | 1 . . 1 . . . 13 . . Average Overweight (x) . | . . . . . . . . . . Largest Inventory Capacity 15 | 8 15 15 15 15 15 15 15 15 10 Average Capacity 14 | 7 14 15 15 15 15 15 15 11 10 Most Carried 15 | 6 13 13 15 15 15 15 15 13 9 Average Carried 13 | 2 10 13 14 14 14 14 14 9 8 Final Capacity 15 | 8 15 15 15 15 15 15 15 10 10 Final Carried 15 | 4 13 13 14 15 15 14 14 9 8 Class Distribution -------------------- 58% | Mutant 39% | Scavenger-Mutant Dominant Class ---------------- Mutant | -10/Materials Mutant | -10/Mines Mutant | -9/Materials Scavenger-Mutant | -9/Mines Scavenger-Mutant | -9/Exiles Scavenger-Mutant | -8/Mines Mutant | -8/Materials Hacker-Sprinter | -8/Storage Hacker-Sprinter | -8/Garrison Resources | -11 -10 -10 -9 -9 -9 -8 -8 -8 -8 ----------- Run | Yrd Mat Min Mat Min Exi Min Mat Sto Gar Matter Collected 1102 | 46 282 47 190 117 . 133 287 . . Remotely . | . . . . . . . . . . Salvage Created 2412 | . 602 39 582 225 . 94 855 . 15 Parts 129 | . 26 5 31 13 . 5 47 . 2 Haulers Intercepted 5 | . . . 3 . . . 2 . . Recyclers Shooed 1 | . . . . . . . 1 . . Parts Field Recycled . | . . . . . . . . . . Retrieved Matter . | . . . . . . . . . . Parts Self-Destructed . | . . . . . . . . . . Prevented . | . . . . . . . . . . Parts Restored . | . . . . . . . . . . Kills | -11 -10 -10 -9 -9 -9 -8 -8 -8 -8 ------- Run | Yrd Mat Min Mat Min Exi Min Mat Sto Gar Combat Hostiles Destroyed 57 | . 9 1 11 8 . 7 20 . 1 Melee 1 | . . . . . . . . . 1 Guns 20 | . 6 . 4 . . . 10 . . Cannons 30 | . 1 1 6 8 . 7 7 . . AOE 6 | . 2 . 1 . . . 3 . . Classes Destroyed 13 | . 6 1 3 1 . 2 . . . Worker 2 | . 1 . . . . . 1 . . Builder 2 | . 1 . . . . . 1 . . Tunneler 1 | . . 1 . . . . . . . Hauler 5 | . . . 3 . . . 2 . . Recycler 3 | . 1 . 1 . . . 1 . . Mechanic 1 | . . . . 1 . . . . . Operator 2 | . 1 . . . . . 1 . . Watcher 5 | . 3 . 2 . . . . . . Swarmer 20 | . . . 4 4 . 3 8 . 1 Grunt 28 | . 9 1 2 4 . 2 10 . . Duelist 1 | . . . . . . 1 . . . Sentry 6 | . . . 5 . . . 1 . . Hunter 2 | . . . . . . 1 1 . . Best Kill Streak 6 | . 5 1 2 4 . 3 6 . 1 Combat Bots Only 5 | . 3 1 2 4 . 3 5 . 1 Max Kills in Single Turn 3 | . 3 1 2 1 . 2 2 . 1 Gunslinging . | . . . . . . . . . . Exploded 2 | . 1 . 1 . . . 2 . . Melee 1 | . . . . . . . . . 1 Uniques/NPCs Destroyed . | . . . . . . . . . . Combat | -11 -10 -10 -9 -9 -9 -8 -8 -8 -8 -------- Run | Yrd Mat Min Mat Min Exi Min Mat Sto Gar Hostile Shots Fired 523 | . 37 10 148 13 . 52 253 . 10 Missed 159 | . 18 3 42 4 . 16 73 . 3 Hits 364 | . 19 7 106 9 . 36 180 . 7 Melee 1 | . . . . . . 1 . . . Projectile 363 | . 19 7 106 9 . 35 180 . 7 Critical Strikes 13 | . 1 . 2 . . 1 9 . . Part Disruptions 1 | . . . . . . . 1 . . Damage Taken 4973 | . 272 88 1168 85 . 566 2738 . 56 Core 872 | . 67 16 148 10 . 74 538 . 19 Absorbed by Shields . | . . . . . . . . . . Core Remaining (%) 69 | 100 . 66 . . . 42 . . . Volleys Fired 211 | . 45 5 39 10 . 35 77 . . Largest 2 | . 2 2 2 2 . 2 2 . . Hottest 133 | . 93 93 116 133 . 133 130 . . Shots Fired 360 | . 81 10 76 20 . 52 121 . . Gun 141 | . 63 . 26 . . . 52 . . Cannon 198 | . 18 10 50 15 . 43 62 . . Launcher 7 | . . . . . . . 7 . . Special 14 | . . . . 5 . 9 . . . Kinetic 130 | . 17 5 13 10 . 43 42 . . Thermal 184 | . 25 5 63 10 . 9 72 . . Explosive 1 | . . . . . . . 1 . . Electromagnetic 45 | . 39 . . . . . 6 . . Robot Hit Streak 19 | . 13 7 7 11 . 13 19 . . Robot Miss Streak 8 | . 4 1 5 2 . 5 8 . . Penetration Max . | . . . . . . . . . . Secondary Targets 1 | . . . . . . . 1 . . Max Gunslinging Chain 1 | . . . . . . . 1 . . Shots Hit Robots 217 | . 51 8 41 12 . 28 76 . 1 Core Hits 109 | . 25 1 20 9 . 12 41 . 1 Critical Kills . | . . . . . . . . . . Critical Parts Destroyed . | . . . . . . . . . . Critical Strikes 11 | . 3 . 1 1 . . 6 . . Burn 11 | . 3 . 1 1 . . 6 . . Melee Attacks 14 | . . . . . . . 1 . 13 Impact . | . . . . . . . . . . Slashing 14 | . . . . . . . 1 . 13 Piercing . | . . . . . . . . . . Sneak Attacks 1 | . . . . . . . 1 . . Combat Hostiles . | . . . . . . . . . . Follow-up Attacks . | . . . . . . . . . . Damage Inflicted 4841 | . 1026 193 928 250 . 561 1847 . 36 Guns 1426 | . 560 . 199 . . . 667 . . Cannons 2482 | . 203 159 553 200 . 501 866 . . Explosions 640 | . 234 . 176 . . . 230 . . Melee 101 | . . . . . . . 65 . 36 Ramming 140 | . 29 34 . 24 . 34 19 . . Kinetic 1752 | . 203 106 216 130 . 501 596 . . Thermal 2164 | . 463 53 536 96 . 26 990 . . Explosive 176 | . . . 176 . . . . . . Electromagnetic 508 | . 331 . . . . . 177 . . Impact . | . . . . . . . . . . Slashing 101 | . . . . . . . 65 . 36 Piercing . | . . . . . . . . . . Highest Corruption 1 | . . . . . . . 1 1 1 Average Corruption 1 | . . . . . . . 1 1 1 Corruption Purged . | . . . . . . . . . . Corruption Blocked . | . . . . . . . . . . Effects 2 | . . . . . . . 2 . . Matter Fused 1 | . . . . . . . 1 . . Parts Rejected 1 | . . . . . . . 1 . . Overload Shots . | . . . . . . . . . . Overflow Damage 28 | . 2 2 . . . . 24 . . Projectiles 4 | . 2 2 . . . . . . . Explosions 24 | . . . . . . . 24 . . Melee . | . . . . . . . . . . Knockbacks 14 | . 1 2 1 1 . 5 4 . . Impact 2 | . . 1 . 1 . . . . . Kinetic 11 | . 1 1 1 . . 4 4 . . Secondary 1 | . . . . . . 1 . . . Self-Inflicted Damage 203 | . 12 . 57 . . . 134 . . Shots 7 | . 1 . 1 . . . 5 . . Rammed 13 | . 3 3 . 4 . 2 1 . . Targets Rammed 16 | . 3 4 . 5 . 2 2 . . Kicked 1 | . . . . . . . 1 . . Crushed 2 | . . 1 . 1 . . . . . Highest Temperature 378 | . 264 219 96 87 . 361 378 . . Average Temperature 114 | . 81 114 31 32 . 192 146 . . Received Heat Transfer 2058 | . 153 54 201 21 . 297 1332 . . Effects 10 | . 1 . . . . 2 7 . . Shutdowns 3 | . . . . . . 1 2 . . Energy Bleed 2 | . 1 . . . . . 1 . . Interference 3 | . . . . . . . 3 . . Short Circuit 1 | . . . . . . 1 . . . Damage (minor) 1 | . . . . . . . 1 . . Siege Activations . | . . . . . . . . . . Martial Activations . | . . . . . . . . . . Shielding Activations . | . . . . . . . . . . Robots Disrupted . | . . . . . . . . . . Combat Hostiles . | . . . . . . . . . . Robots Corrupted . | . . . . . . . . . . Combat Hostiles . | . . . . . . . . . . Parts Fried 2 | . 2 . . . . . . . . Impact Corruptions . | . . . . . . . . . . Robots Melted . | . . . . . . . . . . Combat Hostiles . | . . . . . . . . . . Parts Melted 12 | . 1 . 3 1 . 1 6 . . Heat Transferred 5455 | . 1138 111 1221 468 . 160 2357 . . Parts Sabotaged . | . . . . . . . . . . Parts Stolen . | . . . . . . . . . . Parts Stripped . | . . . . . . . . . . Power Chain Reactions 5 | . 3 . . . . . 2 . . Alert | -11 -10 -10 -9 -9 -9 -8 -8 -8 -8 ------- Run | Yrd Mat Min Mat Min Exi Min Mat Sto Gar Maximum Alert Level 1 | . . . . . . . 1 . . Low Security (%) 97 | 100 100 100 100 100 . 100 86 100 100 Level 1 2 | . . . . . . . 13 . . Level 2 . | . . . . . . . . . . Level 3 . | . . . . . . . . . . Level 4 . | . . . . . . . . . . Level 5 . | . . . . . . . . . . High Security . | . . . . . . . . . . Max Security . | . . . . . . . . . . Peak Influence 267 | . 135 25 138 128 . 84 267 61 84 Initial 61 | . . 1 . 46 . . 10 61 36 Average 55 | . 61 1 71 70 . 14 103 54 44 Influence Increases 2089 | . 270 55 681 241 . 172 607 15 48 Destroy 0b10 Robot/C 1360 | . 180 20 400 200 . 140 400 . 20 Destroy 0b10 Robot/NC 110 | . 35 5 35 5 . . 30 . . Destroy Leader 312 | . 46 . 112 30 . 30 84 . 10 Allied During Kill 64 | . . . 60 4 . . . . . Successful Hack 10 | . . . . . . . 10 . . Disable Machine 90 | . . . 30 . . . 60 . . Destroy Structure 83 | . 9 . 29 2 . 2 23 . 18 Partial Spotted 15 | . . . . . . . . 15 . Lose Combat Pursuer 45 | . . 30 15 . . . . . . Influence Decreases 2005 | . 265 60 561 308 53 144 490 104 20 Entered New Map 253 | . . 4 . 74 53 . 18 84 20 Time Decay 1398 | . 255 56 391 214 . 123 339 20 . Lost Part 234 | . 10 . 70 . . 21 133 . . Lost Ally 120 | . . . 100 20 . . . . . Squads Dispatched 8 | . 2 . 1 1 . . 4 . . Investigation 3 | . 2 . 1 . . . . . . Extermination . | . . . . . . . . . . Reinforcement 2 | . . . . . . . 2 . . Assault 1 | . . . . 1 . . . . . Garrison 2 | . . . . . . . 2 . . Intercept . | . . . . . . . . . . Searches Triggered . | . . . . . . . . . . Construction Impeded 1 | . . . . . . . 1 . . Haulers Reinforced . | . . . . . . . . . . Active Scanning Responses . | . . . . . . . . . . Cargo Convoy Interrupts . | . . . . . . . . . . Stealth | -11 -10 -10 -9 -9 -9 -8 -8 -8 -8 --------- Run | Yrd Mat Min Mat Min Exi Min Mat Sto Gar Distress Signals 4 | . 1 . 2 . . . 1 . . Communications Jammed . | . . . . . . . . . . Distress Signals . | . . . . . . . . . . Times Spotted 102 | . 20 2 23 12 . 7 31 . 7 Peak Tracking Total 7 | . 4 2 5 4 . 3 6 . 7 Tactical Retreats 4 | . 1 2 1 . . . . . . Traps | -11 -10 -10 -9 -9 -9 -8 -8 -8 -8 ------- Run | Yrd Mat Min Mat Min Exi Min Mat Sto Gar Traps Triggered 3 | . 1 . 1 . . . . . 1 Indirectly . | . . . . . . . . . . Trap Hack Attempts . | . . . . . . . . . . Triggered . | . . . . . . . . . . Disarmed . | . . . . . . . . . . Reprogrammed . | . . . . . . . . . . Reused . | . . . . . . . . . . Traps Extracted . | . . . . . . . . . . Installed . | . . . . . . . . . . Triggered . | . . . . . . . . . . Machines | -11 -10 -10 -9 -9 -9 -8 -8 -8 -8 ---------- Run | Yrd Mat Min Mat Min Exi Min Mat Sto Gar Machines Disabled 6 | . . . 2 . . . 4 . . Max in Single Turn 2 | . . . 1 . . . 2 . . Machines Repaired . | . . . . . . . . . . Machines Dismantled . | . . . . . . . . . . Machines Sabotaged . | . . . . . . . . . . Overloaded Fab Kills . | . . . . . . . . . . Hacking | -11 -10 -10 -9 -9 -9 -8 -8 -8 -8 --------- Run | Yrd Mat Min Mat Min Exi Min Mat Sto Gar Machines Accessed 3 | . . . . . 1 . 1 1 . Terminals 1 | . . . . . . . 1 . . Fabricators . | . . . . . . . . . . Repair Stations . | . . . . . . . . . . Recycling Units . | . . . . . . . . . . Scanalyzers . | . . . . . . . . . . Garrison Access 1 | . . . . . . . . 1 . Total Hacks 5 | . . . . . 1 . 3 1 . Successful 5 | . . . . . 1 . 3 1 . Failed . | . . . . . . . . . . Catastrophic . | . . . . . . . . . . Database Lockouts . | . . . . . . . . . . Manual 5 | . . . . . 1 . 4 . . Terminals 3 | . . . . . . . 3 . . Fabricators . | . . . . . . . . . . Repair Stations . | . . . . . . . . . . Recycling Units . | . . . . . . . . . . Scanalyzers . | . . . . . . . . . . Garrison Access 1 | . . . . . . . . 1 . Terminal Hacks 4 | . . . . . 1 . 3 . . Terminal Index 1 | . . . . . . . 1 . . Hauler Manifests 1 | . . . . . . . 1 . . Registered Components 1 | . . . . . . . 1 . . Proto ID Catalog 1 | . . . . . 1 . . . . Fabricator Hacks . | . . . . . . . . . . Repair Station Hacks . | . . . . . . . . . . Recycling Unit Hacks . | . . . . . . . . . . Scanalyzer . | . . . . . . . . . . Garrison Access Hacks 1 | . . . . . . . . 1 . Unlock Access 1 | . . . . . . . . 1 . Unauthorized Hacks . | . . . . . . . . . . Terminals . | . . . . . . . . . . Fabricators . | . . . . . . . . . . Repair Stations . | . . . . . . . . . . Recycling Units . | . . . . . . . . . . Scanalyzers . | . . . . . . . . . . Garrison Access . | . . . . . . . . . . Data Cores Recovered 2 | . 1 . . . . . 1 . . Used . | . . . . . . . . . . Hacking Detections . | . . . . . . . . . . Full Trace Events . | . . . . . . . . . . Feedback Events . | . . . . . . . . . . Feedback Blocked . | . . . . . . . . . . Robot Schematics Acquired . | . . . . . . . . . . Robots Built . | . . . . . . . . . . Authchips . | . . . . . . . . . . Time . | . . . . . . . . . . Total Robot Build Rating . | . . . . . . . . . . Part Schematics Acquired . | . . . . . . . . . . Parts Built . | . . . . . . . . . . Authchips . | . . . . . . . . . . Time . | . . . . . . . . . . Total Part Build Rating . | . . . . . . . . . . Part Studies Acquired . | . . . . . . . . . . Parts Repaired . | . . . . . . . . . . Time . | . . . . . . . . . . Parts Recycled . | . . . . . . . . . . Recycled Matter . | . . . . . . . . . . Retrieved Matter . | . . . . . . . . . . Retrieved Components . | . . . . . . . . . . Parts Scanalyzed . | . . . . . . . . . . Part Schematics Acquired . | . . . . . . . . . . Parts Damaged . | . . . . . . . . . . Bothacking | -11 -10 -10 -9 -9 -9 -8 -8 -8 -8 ------------ Run | Yrd Mat Min Mat Min Exi Min Mat Sto Gar Used RIF Installer . | . . . . . . . . . . Robots Hacked . | . . . . . . . . . . Non-combat . | . . . . . . . . . . Combat . | . . . . . . . . . . Robot Hacks Applied . | . . . . . . . . . . Relay Couplers Released . | . . . . . . . . . . Fabnet Peak Effective % . | . . . . . . . . . . Robots Rewired . | . . . . . . . . . . Allies Hacked . | . . . . . . . . . . Hacks Repelled . | . . . . . . . . . . Allies | -11 -10 -10 -9 -9 -9 -8 -8 -8 -8 -------- Run | Yrd Mat Min Mat Min Exi Min Mat Sto Gar Total Allies 6 | . . 5 . 1 . . . . . Largest Group 5 | . . 5 5 1 . . . . . Highest-Rated Group 85 | . . 85 85 31 . . . . . Highest-Rated Ally 31 | . . 31 31 31 . . . . . Total Orders . | . . . . . . . . . . Ally Attacks 59 | . . . 48 11 . . . . . Total Damage 619 | . . . 451 168 . . . . . Kills 12 | . . . 10 2 . . . . . Allies Corrupted . | . . . . . . . . . . Allies Melted . | . . . . . . . . . . Intel | -11 -10 -10 -9 -9 -9 -8 -8 -8 -8 ------- Run | Yrd Mat Min Mat Min Exi Min Mat Sto Gar Active Infowar (turns) 906 | . . . 906 . . . . . . Structural 906 | . . . 906 . . . . . . Robot Analysis Total . | . . . . . . . . . . Derelict Logs Recovered 3 | . . 2 . 1 . . . . . Drone Launches . | . . . . . . . . . . Drone Recoveries . | . . . . . . . . . . Exploration | -11 -10 -10 -9 -9 -9 -8 -8 -8 -8 ------------- Run | Yrd Mat Min Mat Min Exi Min Mat Sto Gar Turns Passed 5262 | 66 683 851 1135 448 357 626 970 46 80 Spaces Moved 3001 | 35 336 519 602 241 223 330 451 101 163 Core 8 | 3 . . . . . . 5 . . Treads 2506 | 32 336 519 602 241 223 330 223 . . Legs 223 | . . . . . . . 223 . . Wheels . | . . . . . . . . . . Hover . | . . . . . . . . . . Flight 264 | . . . . . . . . 101 163 Fastest Speed 29 | 50 160 160 160 160 160 160 126 29 29 Average Speed 146 | 152 160 160 160 160 160 160 149 29 29 Slowest Speed 700 | 160 160 160 240 160 160 160 700 29 29 Overloaded Moves . | . . . . . . . . . . Propulsion Burnouts . | . . . . . . . . . . Robots Hopped 2 | . . . . . . . . 2 . Potential Cave-ins . | . . . . . . . . . . Cave-ins Triggered . | . . . . . . . . . . Exploration Rate (%) 45 | 3 51 93 58 38 60 69 49 19 13 Regions Visited 9 Branch Regions 5 Pre-discovered Areas 2 | . . 2 . . . . . . . Known Exits Taken 1 | . . . . . . . . 1 . Unknown Exits Taken 8 | 1 1 1 1 1 1 1 1 . . Scrap Searched 3 | . . 2 . . . 1 . . . Spaces Dug 8 | . . . . . . . . . 8 Terrain Destroyed 84 | . 8 . 38 2 . 4 24 . 8 Melee 8 | . . . . . . . . . 8 Projectile 15 | . 1 . 1 2 . 4 7 . . AOE 61 | . 7 . 37 . . . 17 . . Terrain Rammed . | . . . . . . . . . . Walls Destroyed . | . . . . . . . . . . Machines Disabled . | . . . . . . . . . . Actions | -11 -10 -10 -9 -9 -9 -8 -8 -8 -8 --------- Run | Yrd Mat Min Mat Min Exi Min Mat Sto Gar Total 3452 | 46 398 527 696 280 224 370 620 114 177 Wait 96 | . 1 . 17 16 . . 52 10 . Move 2989 | 34 335 518 601 240 222 329 450 97 163 Hop 1 | . . . . . . . . 1 . Pick Up 29 | 6 9 . 8 1 1 1 3 . . Fast Attach 25 | 4 2 . 6 . . 1 12 . . Attach 18 | 2 1 . 3 . . 2 4 5 1 Detach 3 | . 1 . . . . . 2 . . Swap 27 | . 1 . 11 5 . . 9 1 . Drop 23 | . . . 11 3 1 . 8 . . Fire 211 | . 45 5 39 10 . 35 77 . . Melee 14 | . . . . . . . 1 . 13 Ram . | . . . . . . . . . . Kick 1 | . . . . . . . 1 . . Crush 15 | . 3 4 . 5 . 2 1 . . Escape Stasis . | . . . . . . . . . . Rewire . | . . . . . . . . . . Trap . | . . . . . . . . . . Miscellaneous . | . . . . . . . . . . Route ------- -11/Scrapyard -10/Materials (discovered 3 exits: [*Mat x2] / [*Min]) -10/Mines -9/Materials (discovered 3 exits: *Mat x2 / [*Min]) -9/Mines -9/Exiles -8/Mines -8/Materials -8/Storage -8/Garrison History --------- Turn | Location | Event 22 | -11/Scrapyard | Discovered new exit (range 13) 67 | -11/Scrapyard | Entered Materials 300 | -10/Materials | Build established: Mutant 305 | -10/Materials | Discovered new exit (range 7) 518 | -10/Materials | Discovered new exit (range 7) 667 | -10/Materials | Derelicts attacked the area 726 | -10/Materials | Discovered new exit (range 16) 750 | -10/Materials | Entered Mines 822 | -10/Mines | Learned location of Zion (-6) 983 | -10/Mines | Learned Materials stockpile data 1455 | -10/Mines | Assisted by bots powering up and referring to "LRC-V3" 1565 | -10/Mines | Discovered new exit (range 8) 1581 | -10/Mines | Learned location of Storage (-8) 1601 | -10/Mines | Entered Materials 1601 | -9/Materials | Accompanied by 5 allies 1601 | -9/Materials | Evolved 2 slots: Propulsion x1, Utility x1 1606 | -9/Materials | Led the pair of lost Derelicts to an unsafe place 1993 | -9/Materials | Discovered new exit (range 15) 2250 | -9/Materials | Discovered new exit (range 14) 2458 | -9/Materials | Discovered new exit (range 11) 2545 | -9/Materials | Lost 3 parts (1p1n1w) 2623 | -9/Materials | Lost 4 parts (1p2n1u) 2736 | -9/Materials | Entered Mines 2753 | -9/Mines | Assembled infested the area 2838 | -9/Mines | A weapon hastily lodged in a ceiling crevice suddenly fell to the ground 2884 | -9/Mines | Learned Materials trap positions 2905 | -9/Mines | Met a Derelict testing a Signal Generator 2933 | -9/Mines | Build established: Scavenger-Mutant 3165 | -9/Mines | Discovered new exit (range 5) 3184 | -9/Mines | Entered Exiles 3221 | -9/Exiles | Met 8R-AWN 3247 | -9/Exiles | Met EX-HEX 3295 | -9/Exiles | Met EX-BIN 3322 | -9/Exiles | Aligned with FarCom system 3324 | -9/Exiles | Given EX-Vault access code 3370 | -9/Exiles | Opened EX-Vault 3385 | -9/Exiles | Found Skeleton Box 3416 | -9/Exiles | Warned to stay clear of 0b10 Research branches 3463 | -9/Exiles | Met EX-DEC 3528 | -9/Exiles | Discovered new exit (range 10) 3541 | -9/Exiles | Left Exiles lab with Skeleton Box 3541 | -9/Exiles | Entered Mines 3581 | -8/Mines | Found a Scrap Suit stashed away for nefarious purposes 3773 | -8/Mines | Core integrity fell below 50% 4154 | -8/Mines | Discovered new exit (range 9) 4167 | -8/Mines | Entered Materials 4167 | -8/Materials | Evolved 2 slots: Propulsion x1, Utility x1 4168 | -8/Materials | Loaded intel: 17 trap records 4396 | -8/Materials | Lost 3 parts (2n1u) 4958 | -8/Materials | Build established: Mutant 4985 | -8/Materials | Garrison activated, responded to threat 5085 | -8/Materials | Discovered new exit (range 15) 5117 | -8/Materials | Core integrity fell below 50% 5133 | -8/Materials | Core integrity fell below 20% 5137 | -8/Materials | Entered Storage 5161 | -8/Storage | Lost 8 parts (1p5n2w) 5183 | -8/Storage | Identified exit to Garrison 5183 | -8/Storage | Entered Garrison 5251 | -8/Garrison | Triggered checkpoint 5263 | -8/Garrison | Destroyed by S-10 Pest with Light Assault Rifle Last Messages --------------- 05129_ Y-45 Defender destroyed. 05130_ Hvy. Ion Cannon destroyed. 05130_ Critical hit (Burn: +37). LOCATION=UNKNOWN GOAL=ESCAPE 05137_ Receiving FarCom transmissions... 05183_ Connecting with Garrison Access... 05183_ Current location identified: Storage >>Unlock Access door unlocked. 05183_ EXIT=UNLOCKED: GARRISON LOCATION=GARRISON GOAL=ESCAPE 05183_ Receiving FarCom transmissions... 05248_ Triggered Alarm Trap. 05248_ An alarm sounds. 05251_ Beams of light sweep through the air. An alarm sounds. 05254_ C-45 Heavy ARC bursts open, deploying its payload. 05254_ S-10 Pest unfolds itself. 05262_ S-10 Pest destroyed. Map ----- +----------------------------------------------------+ | ?????????????????????????????????????????????????? | | ?????????????????????????????????????????????????? | | ?????????????????????????????????????????????????? | | ?????????????????????????????????????????????????? | | ?????????????????????????????????????????????????? | | ?????????????????????????????????????????????????? | | ?????????????????????????????????????????????????? | | ?????????????????????????????????????????????????? | | ?????????????????????????????????????????????????? | | ?????????????????????????????????????????????????? | | ?????????????????????????????????????????????????? | | ?????????????????????????????????????????????????? | | ?????????????????????????????????????????????????? | | ?????????????????????????????????????????????????? | | ?????????????????????????????????????????????????? | | ?????????????????????????????????????????????????? | | ?????????????????????????????????????????????????? | | ?????????????????????????????????????????????????? | | ???????????????????????????????????????? ??????? | | ???????????????????????????????????????# #?????? | | ??????????????????????????????????????s" ?????? | | ??????????????????????????????????????s" ??? ?? | | ??????????????????????????????????????s" ?? ?? | | ??????????????????#####???????????????s" ?? ??? | | ??????????????????#!!!!####????????????# #? ??? | | ??????????????????# @#????????????# ## ???? | | ??????????????????#[[[[#s#s####????????# ????? | | ??????????????????######p#=s ????????? ????? | | ???????????????????????#p#?## #????????? ?????? | | ???????????????????????# #??# #?????????# #?????? | | ???????????????????????# #??# #?????????# #?????? | | ???????????????????????# #??# ##????????# #?????? | | ???????????????????????# #??# #?######## ##????? | | ?????????????????#######Y####+#??#" " "#????? | | ????????????Y# #??## ##### ##????? | | ?????????????????###### " ### #???# #???# #?????? | | ??????????????????????# % #?# #???# #???# #?????? | | ??????????????????????##/##?# #?### ##??# #?????? | | ???????????????????????# #??# ###"##"#### #?????? | | ??????????????????????## #### #?????? | | ??????????????????????#" " #?????? | | ??????????????????????######## ###########"#????? | | ?????????????????????????????# #??????????##????? | | ?????????????????????????????# #????????????????? | | ?????????????????????????????# #????????????????? | | ?????????????????????????????# #????????????????? | | ?????????????????????????????# #????????????????? | | ?????????????????????????????# #????????????????? | | ?????????????????????????????# #????????????????? | | ???????????????????????????### #????????????????? | +----------------------------------------------------+ Best States ------------- Heat Dissipation 45 Energy Generation 14 Energy Capacity 275 Matter Stores 300 Matter Capacity 300 Sight Range 16 Terrain Scan Density 10 Armor Coverage 225 Evasion (%) 64 Recoil Reduction 4 Offensive Hacking 21 Defensive Hacking 10 Item Schematics ----------------- None Robot Schematics ------------------ None Fabricated ------------ Nothing Repaired ---------- Nothing Studied --------- None Alien Tech Used ----------------- None Achievements -------------- None Challenges ------------ None Game ------ Seed ConstructPotentialWeb Manual? 0 Play Time 00:39:16 Cumulative 68.3 hours Start 2026.04.20 @ 13:52:51 End 2026.04.20 @ 14:30:09 Sessions 1 Manual Loads 0 Difficulty Rogue Special Mode None Game No. 133 Rogue 133 Adventurer 0 Explorer 0 Win Type - Total 0 Types 0/0/0/0/0/0/0/0/0/0 Lore% 15 Gallery% 33 Achievement% 23 Wizard Run 0 Options --------- Layout 0 ASCII 0 Keyboard 1 Movement Vi Keybinds 0 Fullscreen 2 Font 18/T_Terminus Map View 76x50 Zoom Use 0% Tactical HUD 1 Map Filters SHIFT_HUE(5) Filters LOW_CONTRAST(10,2,20)|SHIFT_HUE(5) Steam 1 RUN: ecc81642-26d6-40ab-9f25-d7da28b5e02d